fUST/lending_fUST_20250727
["ID","MTS","AMOUNT","RATE_DAILY","PERIOD"]
[375229601,1753591857813,-460.0,0.00021369,2]
[375229602,1753591857822,-460.0,0.00021369,2]
[375229603,1753591857831,-505.48343794,0.00021369,2]
[375229604,1753591857840,-622.07,0.00021369,2]
[375229606,1753591857850,-460.0,0.00021369,2]
[375229607,1753591857859,-564.9,0.00021369,2]
[375229608,1753591857872,-460.0,0.00021369,2]
[375229610,1753591857881,-622.74,0.00021369,2]
[375229612,1753591857891,-645.93,0.00021369,2]
[375229614,1753591857900,-460.0,0.00021369,2]
[375229616,1753591857910,-460.0,0.00021369,2]
[375229618,1753591857919,-460.0,0.00021369,2]
[375229620,1753591857929,-460.0,0.00021369,2]
[375229622,1753591857939,-460.0,0.00021369,2]
[375229624,1753591857948,-2456.43,0.00021369,2]
[375229626,1753591857958,-460.0,0.00021369,2]
[375229628,1753591857968,-938.04,0.00021369,2]
[375229630,1753591857978,-525.99,0.00021369,2]
[375229632,1753591857987,-488.79,0.00021369,2]
[375229634,1753591857996,-773.1,0.00021369,2]
[375229636,1753591858006,-460.0,0.00021369,2]
[375229638,1753591858015,-845.26,0.00021369,2]
[375229640,1753591858025,-460.0,0.00021369,2]
[375229642,1753591858035,-460.0,0.00021369,2]
[375229644,1753591858045,-460.0,0.00021369,2]
[375229646,1753591858054,-798.34,0.00021369,2]
[375229648,1753591858063,-330.58,0.00021369,2]
[375229650,1753591858073,-584.78,0.00021369,2]
[375229651,1753591858083,-672.53,0.00021369,2]
[375229653,1753591858094,-2999.76,0.00021369,2]
[375229655,1753591858104,-460.0,0.00021369,2]
[375229657,1753591858114,-1147.37,0.00021369,2]
[375229659,1753591858123,-460.0,0.00021369,2]
[375229660,1753591858132,-460.0,0.00021369,2]
[375229661,1753591858142,-790.12,0.00021369,2]
[375229662,1753591858151,-730.21,0.00021369,2]
[375229663,1753591858161,-836.26,0.00021369,2]
[375229664,1753591858171,-2109.78,0.00021369,2]
[375229665,1753591858180,-560.59,0.00021369,2]
[375229666,1753591858190,-412.97,0.00021369,2]
[375229667,1753591858200,-581.12,0.00021369,2]
[375229668,1753591858210,-932.6,0.00021369,2]
[375229669,1753591858220,-2465.52,0.00021369,2]
[375229671,1753591858229,-594.88,0.00021369,2]
[375229673,1753591858239,-788.56,0.00021369,2]
[375229675,1753591858248,-1130.94,0.00021369,2]
[375229677,1753591858258,-659.51,0.00021369,2]
[375229679,1753591858268,-1707.22,0.00021369,2]
[375229681,1753591858278,-548.44,0.00021369,2]
[375229683,1753591858287,-844.26,0.00021369,2]
[375229685,1753591858296,-460.0,0.00021369,2]
[375229687,1753591858306,-460.0,0.00021369,2]
[375229689,1753591858316,-758.57,0.00021369,2]
[375229691,1753591858326,-563.12,0.00021369,2]
[375229693,1753591858335,-460.0,0.00021369,2]
[375229695,1753591858344,-232.26438813,0.00021369,2]
[375229697,1753591858355,-151.0,0.00021369,2]
[375229699,1753591858365,-711.63,0.00021369,2]
[375229701,1753591858374,-1845.29,0.00021369,2]
[375229703,1753591858384,-636.42,0.00021369,2]
[375229705,1753591858393,-537.76,0.00021369,2]
[375229707,1753591858403,-460.0,0.00021369,2]
[375229709,1753591858413,-787.68,0.00021369,2]
[375229711,1753591858423,-460.0,0.00021369,2]
[375229712,1753591858432,-6023.97,0.00021369,2]
[375229714,1753591858443,-921.26,0.00021369,2]
[375229717,1753591858453,-151.0,0.00021369,2]
[375229719,1753591858463,-818.54,0.00021369,2]
[375229720,1753591858472,-164.22329062,0.00021369,2]
[375229723,1753591858482,-497.31696415,0.00021369,2]
[375229724,1753591858492,-460.0,0.00021369,2]
[375229726,1753591858502,-257.25507561,0.0002137,2]
[375229727,1753591858514,-500.0,0.0002137,2]
[375229729,1753591858523,-527.0,0.0002137,2]
[375229731,1753591858533,-151.0,0.0002137,2]
[375229733,1753591858543,-151.0,0.0002137,2]
[375229735,1753591858553,-502.0,0.0002137,2]
[375229737,1753591858563,-500.0,0.0002137,2]
[375229739,1753591858573,-151.0,0.0002137,2]
[375229741,1753591858583,-154.934238,0.00021391,3]
[375229743,1753591858593,-183.4,0.00021492,4]
[375229745,1753591858603,-150.0,0.00021528,2]
[375229747,1753591858613,-196.279068,0.00021555,2]
[375229749,1753591858622,-196.279068,0.00021555,2]
[375229751,1753591858632,-151.0,0.00021555,2]
[375229753,1753591858642,-160.144118,0.00021555,2]
[375229755,1753591858652,-160.144118,0.00021555,2]
[375229757,1753591858661,-385.933467,0.00021555,2]
[375229759,1753591858672,-385.933467,0.00021555,2]
[375229761,1753591858681,-6153.4174091,0.00021555,5]
[375229763,1753591858690,-154.934238,0.00021585,4]
[375229765,1753591858701,-151.0,0.00021616,2]
[375229767,1753591858710,-151.0,0.00021616,2]
[375229769,1753591858720,-151.0,0.00021616,2]
[375229771,1753591858734,-151.0,0.00021616,2]
[375229773,1753591858744,-160.0437776,0.00021616,2]
[375229775,1753591858753,-203.9828583,0.00021616,2]
[375229777,1753591858764,-178.3698008,0.00021616,2]
[375229779,1753591858774,-325.2508831,0.00021616,2]
[375229781,1753591858784,-178.3698008,0.00021616,2]
[375229783,1753591858794,-178.3698008,0.00021616,2]
[375229785,1753591858804,-178.3698008,0.00021616,2]
[375229787,1753591858814,-460.0,0.00021642,2]
[375229789,1753591858825,-460.0,0.00021642,2]
[375229791,1753591858835,-460.0,0.00021642,2]
[375229793,1753591858844,-460.0,0.00021642,2]
[375229795,1753591858854,-460.0,0.00021642,2]
[375229797,1753591858865,-460.0,0.00021642,2]
[375229799,1753591858875,-606.22,0.00021642,2]
[375229801,1753591858884,-151.0,0.00021642,2]
[375229803,1753591858894,-159.58193,0.00021642,2]
[375229805,1753591858906,-2260.23,0.00021642,2]
[375229807,1753591858916,-151.0,0.00021642,2]
[375229809,1753591858926,-151.0,0.00021642,2]
[375229811,1753591858936,-579.11,0.00021642,2]
[375229813,1753591858946,-1892.51,0.00021642,2]
[375229815,1753591858955,-1979.13,0.00021642,2]
[375229818,1753591858967,-460.0,0.00021642,2]
[375229820,1753591858977,-1459.09,0.00021642,2]
[375229822,1753591858986,-577.34,0.00021642,2]
[375229824,1753591858996,-460.0,0.00021642,2]
[375229826,1753591859006,-843.36,0.00021642,2]
[375229828,1753591859015,-680.26,0.00021642,2]
[375229830,1753591859024,-561.02,0.00021642,2]
[375229832,1753591859037,-3587.13,0.00021643,2]
[375229834,1753591859047,-151.772377,0.00021643,2]
[375229836,1753591859063,-3053.11,0.00021643,2]
[375229838,1753591859073,-460.0,0.00021643,2]
[375229840,1753591859083,-1108.1,0.00021643,2]
[375229842,1753591859093,-552.26,0.00021643,2]
[375229843,1753591859105,-1475.97,0.00021643,2]
[375229846,1753591859115,-460.0,0.00021643,2]
[375229848,1753591859126,-460.0,0.00021643,2]
[375229850,1753591859135,-482.96,0.00021643,2]
[375229852,1753591859144,-460.0,0.00021643,2]
[375229854,1753591859154,-608.14,0.00021643,2]
[375229856,1753591859163,-306.2801089,0.00021643,2]
[375229858,1753591859173,-844.88,0.00021643,2]
[375229860,1753591859184,-460.0,0.00021643,2]
[375229861,1753591859194,-818.66,0.00021643,2]
[375229863,1753591859204,-880.14,0.00021643,2]
[375229865,1753591859213,-2120.97,0.00021643,2]
[375229868,1753591859224,-460.0,0.00021643,2]
[375229870,1753591859233,-622.07,0.00021643,2]
[375229871,1753591859243,-460.0,0.00021643,2]
[375229873,1753591859253,-564.9,0.00021643,2]
[375229876,1753591859263,-460.0,0.00021643,2]
[375229877,1753591859274,-622.74,0.00021643,2]
[375229880,1753591859284,-645.93,0.00021643,2]
[375229882,1753591859294,-460.0,0.00021643,2]
[375229884,1753591859304,-460.0,0.00021643,2]
[375229886,1753591859315,-460.0,0.00021643,2]
[375229888,1753591859326,-460.0,0.00021643,2]
[375229890,1753591859337,-460.0,0.00021643,2]
[375229892,1753591859349,-2456.43,0.00021643,2]
[375229894,1753591859359,-474.07361653,0.00021643,2]
[375229896,1753591859368,-938.04,0.00021643,2]
[375229898,1753591859378,-525.99,0.00021643,2]
[375229900,1753591859387,-488.79,0.00021643,2]
[375229902,1753591859396,-773.1,0.00021643,2]
[375229904,1753591859406,-460.0,0.00021643,2]
[375229906,1753591859416,-845.26,0.00021643,2]
[375229908,1753591859427,-576.3,0.00021643,2]
[375229910,1753591859437,-181.46179835,0.00021643,2]
[375229912,1753591859449,-460.0,0.00021643,2]
[375229914,1753591859459,-798.34,0.00021643,2]
[375229916,1753591859469,-584.78,0.00021643,2]
[375229918,1753591859479,-672.53,0.00021643,2]
[375229920,1753591859489,-2999.76,0.00021643,2]
[375229922,1753591859500,-460.0,0.00021643,2]
[375229935,1753591859611,-1147.37,0.00021643,2]
[375229937,1753591859623,-460.0,0.00021643,2]
[375229939,1753591859632,-460.0,0.00021643,2]
[375229941,1753591859642,-790.12,0.00021643,2]
[375229943,1753591859652,-730.21,0.00021643,2]
[375229945,1753591859661,-836.26,0.00021643,2]
[375229947,1753591859670,-2109.78,0.00021643,2]
[375229949,1753591859680,-560.59,0.00021643,2]
[375229950,1753591859689,-581.12,0.00021643,2]
[375229952,1753591859698,-932.6,0.00021643,2]
[375229954,1753591859708,-2465.52,0.00021643,2]
[375229956,1753591859718,-594.88,0.00021643,2]
[375229958,1753591859730,-788.56,0.00021643,2]
[375229960,1753591859739,-1130.94,0.00021643,2]
[375229962,1753591859749,-659.51,0.00021643,2]
[375229964,1753591859759,-1707.22,0.00021643,2]
[375229966,1753591859771,-548.44,0.00021643,2]
[375229968,1753591859781,-844.26,0.00021643,2]
[375229970,1753591859790,-323.78,0.00021643,2]
[375229972,1753591859799,-598.269486,0.00021643,2]
[375229973,1753591859809,-758.57,0.00021643,2]
[375229976,1753591859820,-563.12,0.00021643,2]
[375229977,1753591859830,-460.0,0.00021643,2]
[375229980,1753591859839,-711.63,0.00021643,2]
[375229981,1753591859849,-1845.29,0.00021643,2]
[375229983,1753591859858,-636.42,0.00021643,2]
[375229985,1753591859867,-537.76,0.00021643,2]
[375229987,1753591859877,-460.0,0.00021643,2]
[375229989,1753591859887,-787.68,0.00021643,2]
[375229991,1753591859896,-460.0,0.00021643,2]
[375229993,1753591859906,-6023.97,0.00021643,2]
[375229994,1753591859915,-921.26,0.00021643,2]
[375229995,1753591859924,-818.54,0.00021643,2]
[375229996,1753591859933,-460.0,0.00021643,2]
[375229997,1753591859943,-500.0,0.00021644,2]
[375229998,1753591859951,-527.0,0.00021644,2]
[375229999,1753591859961,-151.0,0.00021644,2]
[375230000,1753591859970,-151.0,0.00021644,2]
[375230001,1753591859979,-502.0,0.00021644,2]
[375230002,1753591859988,-379.43529069,0.00021644,2]
[375230003,1753591859998,-154.934238,0.00021685,2]
[375230004,1753591860007,-958.15,0.000217,2]
[375230005,1753591860016,-3965.15810356,0.0002176,2]
[375230006,1753591860026,-6153.4174091,0.00021762,5]
[375230007,1753591860035,-154.934238,0.00021796,3]
[375230008,1753591860045,-183.4,0.00021902,5]
[375230009,1753591860054,-460.0,0.00021916,2]
[375230010,1753591860063,-460.0,0.00021916,2]
[375230011,1753591860072,-460.0,0.00021916,2]
[375230012,1753591860083,-460.0,0.00021916,2]
[375230013,1753591860093,-460.0,0.00021916,2]
[375230014,1753591860103,-606.22,0.00021916,2]
[375230015,1753591860113,-2260.23,0.00021916,2]
[375230016,1753591860123,-579.11,0.00021916,2]
[375230017,1753591860131,-1892.51,0.00021916,2]
[375230018,1753591860141,-1979.13,0.00021916,2]
[375230019,1753591860149,-460.0,0.00021916,2]
[375230020,1753591860159,-843.36,0.00021916,2]
[375230021,1753591860167,-680.26,0.00021916,2]
[375230022,1753591860176,-561.02,0.00021916,2]
[375230023,1753591860185,-160.0,0.00021917,4]
[375230024,1753591860195,-3587.13,0.00021917,2]
[375230025,1753591860204,-3053.11,0.00021917,2]
[375230026,1753591860214,-460.0,0.00021917,2]
[375230027,1753591860223,-1108.1,0.00021917,2]
[375230028,1753591860232,-552.26,0.00021917,2]
[375230029,1753591860241,-1475.97,0.00021917,2]
[375230030,1753591860250,-460.0,0.00021917,2]
[375230031,1753591860259,-460.0,0.00021917,2]
[375230032,1753591860268,-482.96,0.00021917,2]
[375230033,1753591860278,-460.0,0.00021917,2]
[375230034,1753591860288,-608.14,0.00021917,2]
[375230035,1753591860297,-844.88,0.00021917,2]
[375230036,1753591860306,-460.0,0.00021917,2]
[375230037,1753591860316,-818.66,0.00021917,2]
[375230038,1753591860325,-880.14,0.00021917,2]
[375230039,1753591860335,-2120.97,0.00021917,2]
[375230040,1753591860344,-460.0,0.00021917,2]
[375230041,1753591860355,-622.07,0.00021917,2]
[375230042,1753591860366,-460.0,0.00021917,2]
[375230043,1753591860376,-564.9,0.00021917,2]
[375230044,1753591860385,-460.0,0.00021917,2]
[375230045,1753591860395,-622.74,0.00021917,2]
[375230046,1753591860405,-645.93,0.00021917,2]
[375230047,1753591860415,-460.0,0.00021917,2]
[375230048,1753591860424,-460.0,0.00021917,2]
[375230049,1753591860434,-460.0,0.00021917,2]
[375230050,1753591860443,-460.0,0.00021917,2]
[375230051,1753591860453,-193.59,0.00021917,2]
[375230052,1753591860462,-2456.43,0.00021917,2]
[375230053,1753591860472,-938.04,0.00021917,2]
[375230054,1753591860482,-525.99,0.00021917,2]
[375230055,1753591860491,-488.79,0.00021917,2]
[375230056,1753591860501,-773.1,0.00021917,2]
[375230057,1753591860510,-500.0,0.00021917,2]
[375230058,1753591860519,-503.82413372,0.00021917,2]
[375230059,1753591860528,-460.0,0.00021917,2]
[375230060,1753591860538,-845.26,0.00021917,2]
[375230061,1753591860548,-460.0,0.00021917,2]
[375230062,1753591860557,-798.34,0.00021917,2]
[375230063,1753591860567,-584.78,0.00021917,2]
[375230064,1753591860576,-672.53,0.00021917,2]
[375230065,1753591860585,-2999.76,0.00021917,2]
[375230066,1753591860594,-460.0,0.00021917,2]
[375230067,1753591860604,-1147.37,0.00021917,2]
[375230068,1753591860613,-460.0,0.00021917,2]
[375230069,1753591860622,-426.71,0.00021917,2]
[375230070,1753591860631,-790.12,0.00021917,2]
[375230071,1753591860640,-730.21,0.00021917,2]
[375230072,1753591860650,-836.26,0.00021917,2]
[375230073,1753591860660,-2109.78,0.00021917,2]
[375230074,1753591860670,-560.59,0.00021917,2]
[375230075,1753591860679,-581.12,0.00021917,2]
[375230076,1753591860688,-932.6,0.00021917,2]
[375230077,1753591860698,-2465.52,0.00021917,2]
[375230078,1753591860707,-594.88,0.00021917,2]
[375230079,1753591860717,-788.56,0.00021917,2]
[375230080,1753591860728,-1130.94,0.00021917,2]
[375230081,1753591860738,-659.51,0.00021917,2]
[375230082,1753591860747,-1707.22,0.00021917,2]
[375230083,1753591860756,-548.44,0.00021917,2]
[375230084,1753591860766,-844.26,0.00021917,2]
[375230085,1753591860775,-758.57,0.00021917,2]
[375230086,1753591860785,-563.12,0.00021917,2]
[375230087,1753591860795,-460.0,0.00021917,2]
[375230088,1753591860805,-711.63,0.00021917,2]
[375230089,1753591860815,-1845.29,0.00021917,2]
[375230090,1753591860824,-636.42,0.00021917,2]
[375230091,1753591860833,-537.76,0.00021917,2]
[375230092,1753591860842,-255.57486679,0.00021917,2]
[375230093,1753591860852,-787.68,0.00021917,2]
[375230094,1753591860862,-460.0,0.00021917,2]
[375230095,1753591860871,-6023.97,0.00021917,2]
[375230096,1753591860880,-921.26,0.00021917,2]
[375230097,1753591860890,-818.54,0.00021917,2]
[375230098,1753591860899,-401.44873198,0.00021917,2]
[375230099,1753591860908,-500.0,0.00021918,2]
[375230100,1753591860918,-527.0,0.00021918,2]
[375230101,1753591860927,-245.0,0.00021918,2]
[375230102,1753591860936,-245.0,0.00021918,2]
[375230103,1753591860946,-502.0,0.00021918,2]
[375230104,1753591860955,-6153.4174091,0.00021969,6]
[375230105,1753591860965,-151.0,0.00021969,7]
[375230106,1753591860974,-151.0,0.00021969,7]
[375230107,1753591860983,-4198.39,0.00022,7]
[375230108,1753591860992,-2325.12,0.00022,7]
[375230109,1753591861001,-787.31,0.00022,7]
[375230110,1753591861011,-159.0,0.00022,2]
[375230111,1753591861020,-154.934238,0.00022052,4]
[375230112,1753591861029,-6153.4174091,0.00022176,6]
[375230113,1753591861038,-196.279068,0.00022176,7]
[375230114,1753591861048,-196.279068,0.00022176,7]
[375230115,1753591861057,-151.0,0.00022176,7]
[375230116,1753591861066,-160.144118,0.00022176,7]
[375230117,1753591861076,-160.144118,0.00022176,7]
[375230118,1753591861085,-385.933467,0.00022176,7]
[375230119,1753591861095,-385.933467,0.00022176,7]
[375230120,1753591861105,-460.0,0.0002219,2]
[375230121,1753591861114,-465.85004244,0.0002219,2]
[375230122,1753591861123,-460.0,0.0002219,2]
[375230123,1753591861132,-606.22,0.0002219,2]
[375230124,1753591861142,-2260.23,0.0002219,2]
[375230125,1753591861151,-151.0,0.0002219,7]
[375230126,1753591861160,-579.11,0.0002219,2]
[375230127,1753591861169,-1892.51,0.0002219,2]
[375230128,1753591861178,-1979.13,0.0002219,2]
[375230129,1753591861187,-151.0,0.0002219,7]
[375230130,1753591861197,-151.0,0.0002219,7]
[375230131,1753591861206,-151.0,0.0002219,7]
[375230132,1753591861215,-460.0,0.0002219,2]
[375230133,1753591861225,-843.36,0.0002219,2]
[375230134,1753591861234,-680.26,0.0002219,2]
[375230135,1753591861243,-561.02,0.0002219,2]
[375230136,1753591861252,-3587.13,0.00022191,2]
[375230137,1753591861262,-3053.11,0.00022191,2]
[375230138,1753591861271,-224.13439334,0.00022191,2]
[375230139,1753591861281,-1108.1,0.00022191,2]
[375230140,1753591861289,-552.26,0.00022191,2]
[375230141,1753591861299,-1475.97,0.00022191,2]
[375230142,1753591861308,-460.0,0.00022191,2]
[375230143,1753591861317,-460.0,0.00022191,2]
[375230144,1753591861326,-482.96,0.00022191,2]
[375230145,1753591861336,-460.0,0.00022191,2]
[375230146,1753591861345,-608.14,0.00022191,2]
[375230147,1753591861354,-151.0,0.00022191,7]
[375230148,1753591861363,-844.88,0.00022191,2]
[375230149,1753591861373,-460.0,0.00022191,2]
[375230150,1753591861382,-151.0,0.00022191,7]
[375230151,1753591861392,-818.66,0.00022191,2]
[375230152,1753591861402,-880.14,0.00022191,2]
[375230153,1753591861411,-460.0,0.00022191,2]
[375230154,1753591861420,-2120.97,0.00022191,2]
[375230155,1753591861429,-622.07,0.00022191,2]
[375230156,1753591861438,-460.0,0.00022191,2]
[375230157,1753591861448,-564.9,0.00022191,2]
[375230158,1753591861457,-460.0,0.00022191,2]
[375230159,1753591861466,-622.74,0.00022191,2]
[375230160,1753591861475,-645.93,0.00022191,2]
[375230161,1753591861484,-185.2335945,0.00022191,2]
[375230162,1753591861493,-460.0,0.00022191,2]
[375230163,1753591861503,-460.0,0.00022191,2]
[375230164,1753591861512,-460.0,0.00022191,2]
[375230165,1753591861522,-2456.43,0.00022191,2]
[375230166,1753591861531,-938.04,0.00022191,2]
[375230167,1753591861540,-525.99,0.00022191,2]
[375230168,1753591861549,-488.79,0.00022191,2]
[375230169,1753591861560,-773.1,0.00022191,2]
[375230170,1753591861569,-460.0,0.00022191,2]
[375230171,1753591861578,-845.26,0.00022191,2]
[375230172,1753591861587,-460.0,0.00022191,2]
[375230173,1753591861598,-798.34,0.00022191,2]
[375230174,1753591861608,-584.78,0.00022191,2]
[375230175,1753591861618,-672.53,0.00022191,2]
[375230176,1753591861627,-2999.76,0.00022191,2]
[375230177,1753591861636,-460.0,0.00022191,2]
[375230178,1753591861645,-1147.37,0.00022191,2]
[375230179,1753591861654,-460.0,0.00022191,2]
[375230180,1753591861663,-790.12,0.00022191,2]
[375230181,1753591861673,-730.21,0.00022191,2]
[375230182,1753591861683,-836.26,0.00022191,2]
[375230183,1753591861692,-2109.78,0.00022191,2]
[375230184,1753591861704,-560.59,0.00022191,2]
[375230185,1753591861714,-932.6,0.00022191,2]
[375230186,1753591861724,-581.12,0.00022191,2]
[375230187,1753591861736,-2465.52,0.00022191,2]
[375230188,1753591861746,-594.88,0.00022191,2]
[375230189,1753591861755,-788.56,0.00022191,2]
[375230190,1753591861764,-1130.94,0.00022191,2]
[375230191,1753591861775,-659.51,0.00022191,2]
[375230192,1753591861784,-1707.22,0.00022191,2]
[375230193,1753591861794,-548.44,0.00022191,2]
[375230194,1753591861807,-844.26,0.00022191,2]
[375230195,1753591861816,-758.57,0.00022191,2]
[375230196,1753591861827,-563.12,0.00022191,2]
[375230197,1753591861836,-460.0,0.00022191,2]
[375230198,1753591861846,-711.63,0.00022191,2]
[375230199,1753591861856,-1845.29,0.00022191,2]
[375230200,1753591861866,-537.76,0.00022191,2]
[375230201,1753591861875,-636.42,0.00022191,2]
[375230202,1753591861886,-787.68,0.00022191,2]
[375230203,1753591861895,-460.0,0.00022191,2]
[375230204,1753591861905,-6023.97,0.00022191,2]
[375230205,1753591861916,-921.26,0.00022191,2]
[375230206,1753591861925,-818.54,0.00022191,2]
[375230207,1753591861935,-288.0,0.00022192,2]
[375230208,1753591861944,-527.0,0.00022192,2]
[375230209,1753591861954,-502.0,0.00022192,2]
[375230210,1753591861963,-154.934238,0.00022202,3]
[375230211,1753591861972,-3965.15810356,0.0002225,2]
[375230212,1753591861981,-410.48,0.00022305,2]
[375230213,1753591861991,-183.4,0.00022311,5]
[375230214,1753591862000,-154.934238,0.00022325,2]
[375230215,1753591862009,-4245.64528335,0.00022364,2]
[375230216,1753591862019,-214.84090509,0.00022383,7]
[375230217,1753591862029,-6153.4174091,0.00022383,7]
[375230218,1753591862038,-1000.0,0.00022383,5]
[375230219,1753591862048,-3344.09287984,0.00022431,2]
[375230220,1753591862057,-460.0,0.00022464,2]
[375230221,1753591862067,-606.22,0.00022464,2]
[375230222,1753591862076,-150.0,0.00022464,2]
[375230223,1753591862085,-2260.23,0.00022464,2]
[375230224,1753591862094,-579.11,0.00022464,2]
[375230225,1753591862103,-1892.51,0.00022464,2]
[375230226,1753591862113,-1979.13,0.00022464,2]
[375230227,1753591862122,-843.36,0.00022464,2]
[375230228,1753591862131,-680.26,0.00022464,2]
[375230229,1753591862140,-561.02,0.00022464,2]
[375230230,1753591862149,-3587.13,0.00022465,2]
[375230231,1753591862158,-3053.11,0.00022465,2]
[375230232,1753591862167,-1108.1,0.00022465,2]
[375230233,1753591862176,-552.26,0.00022465,2]
[375230234,1753591862185,-1475.97,0.00022465,2]
[375230235,1753591862194,-460.0,0.00022465,2]
[375230236,1753591862203,-227.06970622,0.00022465,2]
[375230237,1753591862299,-482.96,0.00022465,2]
[375230238,1753591862320,-268.02119063,0.00022465,2]
[375230239,1753591862330,-608.14,0.00022465,2]
[375230240,1753591862339,-844.88,0.00022465,2]
[375230241,1753591862348,-460.0,0.00022465,2]
[375230242,1753591862358,-818.66,0.00022465,2]
[375230243,1753591862367,-880.14,0.00022465,2]
[375230244,1753591862377,-460.0,0.00022465,2]
[375230245,1753591862386,-2120.97,0.00022465,2]
[375230246,1753591862395,-622.07,0.00022465,2]
[375230247,1753591862403,-608.36331795,0.00022465,2]
[375230248,1753591862412,-564.9,0.00022465,2]
[375230249,1753591862421,-460.0,0.00022465,2]
[375230250,1753591862431,-622.74,0.00022465,2]
[375230251,1753591862440,-645.93,0.00022465,2]
[375230252,1753591862449,-460.0,0.00022465,2]
[375230253,1753591862459,-460.0,0.00022465,2]
[375230254,1753591862468,-460.0,0.00022465,2]
[375230255,1753591862478,-2456.43,0.00022465,2]
[375230256,1753591862487,-938.04,0.00022465,2]
[375230257,1753591862497,-525.99,0.00022465,2]
[375230258,1753591862506,-488.79,0.00022465,2]
[375230259,1753591862516,-773.1,0.00022465,2]
[375230260,1753591862525,-460.0,0.00022465,2]
[375230261,1753591862534,-845.26,0.00022465,2]
[375230262,1753591862543,-460.0,0.00022465,2]
[375230263,1753591862553,-1560.76,0.00022465,2]
[375230264,1753591862562,-798.34,0.00022465,2]
[375230265,1753591862571,-584.78,0.00022465,2]
[375230266,1753591862580,-672.53,0.00022465,2]
[375230267,1753591862589,-2999.76,0.00022465,2]
[375230268,1753591862599,-460.0,0.00022465,2]
[375230269,1753591862608,-1147.37,0.00022465,2]
[375230270,1753591862618,-460.0,0.00022465,2]
[375230271,1753591862627,-790.12,0.00022465,2]
[375230272,1753591862843,-730.21,0.00022465,2]
[375230273,1753591862854,-836.26,0.00022465,2]
[375230274,1753591862864,-2109.78,0.00022465,2]
[375230275,1753591862874,-560.59,0.00022465,2]
[375230276,1753591862883,-932.6,0.00022465,2]
[375230277,1753591862892,-581.12,0.00022465,2]
[375230278,1753591862902,-2465.52,0.00022465,2]
[375230279,1753591862911,-788.56,0.00022465,2]
[375230280,1753591862920,-594.88,0.00022465,2]
[375230281,1753591862929,-1130.94,0.00022465,2]
[375230282,1753591862939,-659.51,0.00022465,2]
[375230283,1753591862948,-1707.22,0.00022465,2]
[375230284,1753591862958,-548.44,0.00022465,2]
[375230285,1753591862967,-844.26,0.00022465,2]
[375230286,1753591862976,-758.57,0.00022465,2]
[375230287,1753591862986,-563.12,0.00022465,2]
[375230288,1753591862995,-460.0,0.00022465,2]
[375230289,1753591863006,-711.63,0.00022465,2]
[375230290,1753591863016,-1845.29,0.00022465,2]
[375230291,1753591863027,-537.76,0.00022465,2]
[375230292,1753591863037,-636.42,0.00022465,2]